fUSD/lending_fUSD_20260207
["ID","MTS","AMOUNT","RATE_DAILY","PERIOD"]
[404729183,1770497447191,-202.63046957,0.0003893,14]
[404729184,1770497447200,-500.0,0.0003896,2]
[404729185,1770497447209,-500.0,0.0003896,2]
[404729186,1770497447218,-500.0,0.0003896,2]
[404729187,1770497447229,-500.0,0.0003896,2]
[404729188,1770497447242,-200.0,0.0003896,2]
[404729189,1770497447255,-150.0,0.0003896,2]
[404729190,1770497447265,-500.0,0.0003896,2]
[404729191,1770497447275,-150.0,0.0003896,2]
[404729192,1770497447286,-150.0,0.0003896,2]
[404729193,1770497447297,-506.07237425,0.0003896,2]
[404729194,1770497447307,-500.0,0.0003896,2]
[404729195,1770497447318,-150.0,0.0003896,2]
[404729196,1770497447329,-500.0,0.0003896,2]
[404729197,1770497447338,-505.21716028,0.0003896,2]
[404729198,1770497447349,-500.0,0.0003896,2]
[404729199,1770497447358,-500.0,0.0003896,2]
[404729200,1770497447367,-500.0,0.0003896,2]
[404729201,1770497447377,-500.0,0.00039,30]
[404729202,1770497447386,-504.68637928,0.00039,30]
[404729203,1770497447395,-255.92941986,0.00039015,2]
[404729204,1770497447403,-500.0,0.00039015,2]
[404729205,1770497447411,-500.0,0.00039015,2]
[404729206,1770497447421,-500.0,0.00039015,2]
[404729207,1770497447431,-200.0,0.00039015,2]
[404729208,1770497447441,-200.76217523,0.00039015,2]
[404729209,1770497447451,-500.0,0.00039015,2]
[404729210,1770497447460,-150.0,0.00039015,2]
[404729211,1770497447469,-150.0,0.00039015,2]
[404729212,1770497447479,-620.0,0.00039015,2]
[404729213,1770497447488,-150.0,0.00039015,2]
[404729214,1770497447497,-582.0,0.00039015,2]
[404729215,1770497447506,-500.0,0.00039015,2]
[404729216,1770497447516,-500.0,0.00039015,2]
[404729217,1770497447525,-481.18508703,0.00039015,2]
[404729218,1770497447534,-500.0,0.00039069,2]
[404729219,1770497447544,-500.0,0.00039069,2]
[404729220,1770497447554,-500.0,0.00039069,2]
[404729221,1770497447564,-200.0,0.00039069,2]
[404729222,1770497447574,-500.7490249,0.00039069,2]
[404729223,1770497447584,-150.0,0.00039069,2]
[404729224,1770497447594,-150.0,0.00039069,2]
[404729225,1770497447604,-150.0,0.00039069,2]
[404729226,1770497447613,-158.63867507,0.00039069,2]
[404729227,1770497447623,-500.0,0.00039069,2]
[404729228,1770497447632,-500.0,0.00039124,2]
[404729229,1770497447640,-500.0,0.00039124,2]
[404729230,1770497447648,-500.0,0.00039124,2]
[404729231,1770497447657,-200.0,0.00039124,2]
[404729232,1770497447667,-211.1146881,0.00039124,2]
[404729233,1770497447675,-150.0,0.00039124,2]
[404729234,1770497447684,-150.0,0.00039124,2]
[404729235,1770497447692,-500.0,0.00039124,2]
[404729236,1770497447700,-150.1,0.00039143,2]
[404729237,1770497447710,-512.0,0.00039179,2]
[404729238,1770497447720,-500.0,0.00039179,2]
[404729239,1770497447731,-500.0,0.00039179,2]
[404729240,1770497447742,-200.0,0.00039179,2]
[404729241,1770497447753,-221.24334971,0.00039179,2]
[404729242,1770497447764,-250.0,0.00039179,2]
[404729243,1770497447775,-500.0,0.00039179,2]
[404729244,1770497447786,-507.0,0.00039228,10]
[404729245,1770497447797,-500.0,0.00039234,2]
[404729246,1770497447807,-359.9595705,0.00039234,2]
[404729247,1770497447817,-200.0,0.00039234,2]
[404729248,1770497447828,-500.0,0.00039234,2]
[404729249,1770497447838,-2597.05443863,0.00039237,2]
[404729250,1770497447848,-500.0,0.00039289,2]
[404729251,1770497447859,-200.0,0.00039289,2]
[404729252,1770497447869,-500.0,0.00039289,2]
[404729253,1770497447879,-340.65020243,0.00039343,2]
[404729254,1770497447891,-200.0,0.00039343,2]
[404729255,1770497447901,-500.0,0.00039343,2]
[404729256,1770497447911,-400.0,0.0003935,3]
[404729257,1770497447923,-200.0,0.00039398,2]
[404729258,1770497447934,-500.0,0.00039398,2]
[404729259,1770497447946,-200.0,0.00039453,2]
[404729260,1770497447957,-500.0,0.00039453,2]
[404729261,1770497447968,-3074.0,0.000395,2]
[404729262,1770497447978,-200.0,0.00039508,2]
[404729263,1770497447988,-500.0,0.00039508,2]
[404729264,1770497448000,-201.42236302,0.00039563,2]
[404729265,1770497448010,-500.0,0.00039563,2]
[404729266,1770497448019,-1845.42144061,0.00039598,2]
[404729267,1770497448028,-1188.33269675,0.000396,2]
[404729268,1770497448038,-2000.0,0.000396,2]
[404729269,1770497448048,-500.0,0.00039617,2]
[404729270,1770497448058,-500.0,0.00039672,2]
[404729271,1770497448067,-15318.27,0.000397,2]
[404729272,1770497448077,-1000.0,0.00039726,14]
[404729273,1770497448087,-319.79604183,0.00039727,2]
[404729274,1770497448096,-300.0,0.00039731,2]
[404729275,1770497448106,-300.0,0.00039731,2]
[404729276,1770497448118,-300.0,0.00039731,2]
[404729277,1770497448127,-2000.0,0.000398,7]
[404729278,1770497448136,-514.0,0.00039803,2]
[404729279,1770497448147,-1000.0,0.000399,2]
[404729280,1770497448158,-1000.0,0.000399,120]
[404729281,1770497448169,-3283.18932825,0.000399,15]
[404729282,1770497448179,-3160.6604335,0.000399,15]
[404729283,1770497448189,-15318.27,0.000399,2]
[404729284,1770497448201,-10617.758749,0.00039958,2]
[404729285,1770497448211,-116767.8263602,0.00039958,2]
[404729286,1770497448221,-300.0,0.0003997,2]
[404729287,1770497448231,-400.0,0.0003997,2]
[404729288,1770497448242,-1504.0,0.00039999,7]
[404729289,1770497448254,-152.0,0.00039999,7]
[404729290,1770497448264,-153.0,0.00039999,7]
[404729291,1770497448273,-1504.0,0.00039999,7]
[404729292,1770497448283,-159.38491667,0.00039999,7]
[404729293,1770497448296,-152.0,0.00039999,7]
[404729294,1770497448306,-153.0,0.00039999,7]
[404729295,1770497448316,-1504.0,0.00039999,7]
[404729296,1770497448326,-152.0,0.00039999,7]
[404729297,1770497448336,-159.0,0.00039999,7]
[404729298,1770497448346,-153.0,0.00039999,7]
[404729299,1770497448356,-154.35396912,0.00039999,7]
[404729300,1770497448366,-152.0,0.00039999,7]
[404729301,1770497448376,-1504.0,0.00039999,7]
[404729302,1770497448386,-153.0,0.00039999,7]
[404729303,1770497448395,-153.0,0.00039999,7]
[404729304,1770497448404,-1504.0,0.00039999,7]
[404729305,1770497448414,-153.0,0.00039999,7]
[404729306,1770497448423,-1504.0,0.00039999,7]
[404729307,1770497448433,-1504.0,0.00039999,7]
[404729308,1770497448442,-1504.0,0.00039999,7]
[404729309,1770497448452,-152.0,0.00039999,7]
[404729310,1770497448462,-1504.0,0.00039999,7]
[404729311,1770497448471,-152.0,0.00039999,7]
[404729312,1770497448482,-1504.0,0.00039999,7]
[404729313,1770497448491,-193.98899012,0.00039999,7]
[404729314,1770497448501,-152.0,0.00039999,7]
[404729315,1770497448511,-1504.0,0.00039999,7]
[404729316,1770497448521,-153.0,0.00039999,7]
[404729317,1770497448531,-152.0,0.00039999,7]
[404729318,1770497448542,-153.0,0.00039999,7]
[404729319,1770497448551,-1504.0,0.00039999,7]
[404729320,1770497448561,-152.0,0.00039999,7]
[404729321,1770497448572,-153.0,0.00039999,7]
[404729322,1770497448582,-1504.0,0.00039999,7]
[404729323,1770497448591,-153.0,0.00039999,7]
[404729324,1770497448601,-152.0,0.00039999,7]
[404729325,1770497448610,-1504.0,0.00039999,7]
[404729326,1770497448620,-153.0,0.00039999,7]
[404729327,1770497448630,-152.0,0.00039999,7]
[404729328,1770497448639,-1504.0,0.00039999,7]
[404729329,1770497448649,-160.23474232,0.00039999,7]
[404729330,1770497448658,-153.0,0.00039999,7]
[404729331,1770497448668,-1504.0,0.00039999,7]
[404729332,1770497448678,-152.0,0.00039999,7]
[404729333,1770497448688,-153.0,0.00039999,7]
[404729334,1770497448698,-1504.0,0.00039999,7]
[404729335,1770497448707,-152.0,0.00039999,7]
[404729336,1770497448717,-1504.0,0.00039999,7]
[404729337,1770497448726,-152.0,0.00039999,7]
[404729338,1770497448736,-153.0,0.00039999,7]
[404729339,1770497448745,-1504.0,0.00039999,7]
[404729340,1770497448754,-152.0,0.00039999,7]
[404729341,1770497448764,-153.0,0.00039999,7]
[404729342,1770497448773,-1504.0,0.00039999,7]
[404729343,1770497448783,-152.0,0.00039999,7]
[404729344,1770497448792,-153.0,0.00039999,7]
[404729345,1770497448802,-1504.0,0.00039999,7]
[404729346,1770497448811,-152.0,0.00039999,7]
[404729347,1770497448821,-153.0,0.00039999,7]
[404729348,1770497448830,-1504.0,0.00039999,7]
[404729349,1770497448840,-152.0,0.00039999,7]
[404729350,1770497448849,-153.0,0.00039999,7]
[404729351,1770497448858,-152.0,0.00039999,7]
[404729352,1770497448868,-1504.0,0.00039999,7]
[404729353,1770497448877,-153.0,0.00039999,7]
[404729354,1770497448887,-152.0,0.00039999,7]
[404729355,1770497448897,-153.0,0.00039999,7]
[404729356,1770497448906,-244.32691947,0.00039999,7]
[404729357,1770497448916,-1504.0,0.00039999,7]
[404729358,1770497448926,-152.0,0.00039999,7]
[404729359,1770497448935,-1504.0,0.00039999,7]
[404729360,1770497448944,-152.0,0.00039999,7]
[404729361,1770497448954,-1504.0,0.00039999,7]
[404729362,1770497448963,-152.0,0.00039999,7]
[404729363,1770497448973,-1504.0,0.00039999,7]
[404729364,1770497448983,-152.0,0.00039999,7]
[404729365,1770497448992,-1504.0,0.00039999,7]
[404729366,1770497449003,-152.0,0.00039999,7]
[404729367,1770497449015,-1504.0,0.00039999,7]
[404729368,1770497449025,-152.0,0.00039999,7]
[404729369,1770497449034,-1504.0,0.00039999,7]
[404729370,1770497449045,-152.0,0.00039999,7]
[404729371,1770497449054,-152.0,0.00039999,7]
[404729372,1770497449063,-152.0,0.00039999,7]
[404729373,1770497449073,-1504.0,0.00039999,7]
[404729374,1770497449082,-152.0,0.00039999,7]
[404729375,1770497449092,-1504.0,0.00039999,7]
[404729376,1770497449101,-152.0,0.00039999,7]
[404729377,1770497449111,-1504.0,0.00039999,7]
[404729378,1770497449120,-152.0,0.00039999,7]
[404729379,1770497449130,-1504.0,0.00039999,7]
[404729380,1770497449140,-152.0,0.00039999,7]
[404729381,1770497449150,-1504.0,0.00039999,7]
[404729382,1770497449160,-152.0,0.00039999,7]
[404729383,1770497449170,-1504.0,0.00039999,7]
[404729384,1770497449180,-152.0,0.00039999,7]
[404729385,1770497449190,-1504.0,0.00039999,7]
[404729386,1770497449200,-152.0,0.00039999,7]
[404729387,1770497449210,-1504.0,0.00039999,7]
[404729388,1770497449219,-152.0,0.00039999,7]
[404729389,1770497449230,-1504.0,0.00039999,7]
[404729390,1770497449240,-270.95620255,0.00039999,7]
[404729391,1770497449253,-1504.0,0.00039999,7]
[404729392,1770497449263,-1504.0,0.00039999,7]
[404729393,1770497449273,-1504.0,0.00039999,7]
[404729394,1770497449284,-1504.0,0.00039999,7]
[404729395,1770497449462,-488.23949464,0.00039999,7]
[404729396,1770497449472,-150667.96133285,0.0004,120]
[404729397,1770497449482,-1866.62966538,0.0004,30]
[404729398,1770497449491,-1662.14287181,0.0004,30]
[404729399,1770497449501,-250.0,0.0004,45]
[404729400,1770497449510,-151.0,0.0004,120]
[404729401,1770497449519,-154.0,0.0004,120]
[404729402,1770497449528,-15024.43680042,0.0004,4]
[404729403,1770497449537,-571.44437071,0.0004,120]
[404729404,1770497449547,-426.1842504,0.0004,7]
[404729405,1770497449556,-58660.35986833,0.0004,120]
[404729406,1770497449565,-201.93775137,0.0004,120]
[404729407,1770497449574,-262.96518185,0.0004,120]
[404729408,1770497449583,-752.59173722,0.0004,120]
[404729409,1770497449593,-3798.30663054,0.0004,7]
[404729410,1770497449602,-989.14299836,0.0004,7]
[404729411,1770497449612,-209.90308875,0.0004,14]
[404729412,1770497449621,-172123.81711092,0.0004,120]
[404729413,1770497449630,-4103.61690192,0.0004,2]
[404729414,1770497449639,-1279.84291379,0.0004,30]
[404729415,1770497449649,-5146.02646052,0.0004,120]
[404729416,1770497449658,-157.98328468,0.0004,120]
[404729417,1770497449667,-955.78179387,0.0004,2]
[404729418,1770497449677,-167.61262427,0.0004,120]
[404729419,1770497449686,-246.14908595,0.0004,120]
[404729420,1770497449695,-425778.7601684,0.0004,120]
[404729421,1770497449705,-171.11,0.0004,14]
[404729422,1770497449714,-1000.0,0.0004,7]
[404729423,1770497449723,-1000.0,0.0004,7]
[404729424,1770497449732,-1013.28,0.0004,7]
[404729425,1770497449742,-151.0,0.0004,30]
[404729426,1770497449751,-2000.0,0.0004,7]
[404729427,1770497449761,-200.0,0.0004,7]
[404729428,1770497449770,-1450.96,0.0004,30]
[404729429,1770497449779,-151.0,0.0004,30]
[404729430,1770497449788,-151.0,0.0004,120]
[404729431,1770497449797,-151.0,0.0004,120]
[404729432,1770497449806,-151.0,0.0004,120]
[404729433,1770497449816,-151.0,0.0004,120]
[404729434,1770497449825,-151.0,0.0004,120]
[404729435,1770497449835,-151.0,0.0004,120]
[404729436,1770497449844,-151.0,0.0004,120]
[404729437,1770497449854,-151.0,0.0004,120]
[404729438,1770497449865,-153.783266,0.0004,120]
[404729439,1770497449874,-151.0,0.0004,120]
[404729440,1770497449885,-151.0,0.0004,120]
[404729441,1770497449895,-151.0,0.0004,120]
[404729442,1770497449904,-409.472256,0.0004,120]
[404729443,1770497449914,-151.0,0.0004,120]
[404729444,1770497449929,-409.472256,0.0004,120]
[404729445,1770497449942,-234.259121,0.0004,120]
[404729446,1770497449951,-409.472256,0.0004,120]
[404729447,1770497449960,-409.472256,0.0004,120]
[404729448,1770497449969,-151.0,0.0004,120]
[404729449,1770497449978,-248.986429,0.0004,120]
[404729450,1770497449987,-248.986429,0.0004,120]
[404729451,1770497449996,-248.986429,0.0004,120]
[404729452,1770497450005,-248.986429,0.0004,120]
[404729453,1770497450014,-151.0,0.0004,120]
[404729454,1770497450023,-151.0,0.0004,120]
[404729455,1770497450032,-151.0,0.0004,120]
[404729456,1770497450041,-151.0,0.0004,120]
[404729457,1770497450050,-151.0,0.0004,120]
[404729458,1770497450059,-260.703241,0.0004,120]
[404729459,1770497450068,-260.703241,0.0004,120]
[404729460,1770497450081,-260.703241,0.0004,120]
[404729461,1770497450091,-260.703241,0.0004,120]
[404729462,1770497450100,-151.0,0.0004,120]
[404729463,1770497450109,-229.044107,0.0004,120]
[404729464,1770497450119,-198.162753,0.0004,120]
[404729465,1770497450128,-151.0,0.0004,120]
[404729466,1770497450137,-151.0,0.0004,60]
[404729467,1770497450151,-151.0,0.0004,120]
[404729468,1770497450160,-151.0,0.0004,60]
[404729469,1770497450169,-151.0,0.0004,120]
[404729470,1770497450178,-151.0,0.0004,120]
[404729471,1770497450187,-151.0,0.0004,120]
[404729472,1770497450196,-151.0,0.0004,120]
[404729473,1770497450205,-1820.893558,0.0004,120]
[404729474,1770497450214,-1820.893558,0.0004,120]
[404729475,1770497450224,-1820.893558,0.0004,120]
[404729476,1770497450233,-1820.893558,0.0004,120]
[404729477,1770497450245,-172.738077,0.0004,120]
[404729478,1770497450254,-151.0,0.0004,120]
[404729479,1770497450263,-178.512147,0.0004,120]
[404729480,1770497450273,-151.0,0.0004,120]
[404729481,1770497450283,-151.0,0.0004,120]
[404729482,1770497450292,-151.0,0.0004,120]
[404729483,1770497450302,-151.0,0.0004,120]
[404729484,1770497450312,-186.347763,0.0004,120]
[404729485,1770497450321,-204.547439,0.0004,120]
[404729486,1770497450330,-2000.0,0.0004,120]
[404729487,1770497450339,-343.274458,0.0004,120]
[404729488,1770497450348,-245.653065,0.0004,120]
[404729489,1770497450358,-343.274458,0.0004,120]
[404729490,1770497450367,-343.274458,0.0004,120]
[404729491,1770497450376,-343.274458,0.0004,120]
[404729492,1770497450385,-527.681011,0.0004,120]
[404729493,1770497450393,-527.681011,0.0004,120]
[404729494,1770497450403,-527.681011,0.0004,120]
[404729495,1770497450412,-527.681011,0.0004,120]
[404729496,1770497450421,-236.076272,0.0004,120]
[404729497,1770497450430,-154.022486,0.0004,120]
[404729498,1770497450440,-164.77773,0.0004,120]
[404729499,1770497450449,-151.0,0.0004,120]
[404729500,1770497450458,-151.0,0.0004,120]
[404729501,1770497450467,-151.0,0.0004,120]
[404729502,1770497450476,-151.0,0.0004,120]
[404729503,1770497450485,-151.0,0.0004,120]
[404729504,1770497450494,-161.36339,0.0004,120]
[404729505,1770497450503,-151.0,0.0004,120]
[404729506,1770497450512,-161.36339,0.0004,120]
[404729507,1770497450521,-209.532129,0.0004,120]
[404729508,1770497450530,-151.0,0.0004,120]
[404729509,1770497450540,-161.36339,0.0004,120]
[404729510,1770497450549,-209.532129,0.0004,120]
[404729511,1770497450558,-161.36339,0.0004,120]
[404729512,1770497450567,-209.532129,0.0004,120]
[404729513,1770497450576,-151.0,0.0004,120]
[404729514,1770497450585,-151.0,0.0004,14]
[404729515,1770497450594,-209.532129,0.0004,120]
[404729516,1770497450604,-151.0,0.0004,120]
[404729517,1770497450614,-252.966771,0.0004,120]
[404729518,1770497450623,-151.0,0.0004,14]
[404729519,1770497450632,-151.0,0.0004,120]
[404729520,1770497450642,-159.234161,0.0004,120]
[404729521,1770497450651,-275.357411,0.0004,120]
[404729522,1770497450661,-151.0,0.0004,120]
[404729523,1770497450672,-275.357411,0.0004,120]
[404729524,1770497450682,-151.0,0.0004,120]
[404729525,1770497450692,-275.357411,0.0004,120]
[404729526,1770497450701,-151.0,0.0004,120]
[404729527,1770497450710,-2000.0,0.0004,7]
[404729528,1770497450720,-275.357411,0.0004,120]
[404729529,1770497450729,-342.470582,0.0004,120]
[404729530,1770497450740,-342.470582,0.0004,120]
[404729531,1770497450749,-157.32179,0.0004,120]
[404729532,1770497450758,-342.470582,0.0004,120]
[404729533,1770497450767,-151.0,0.0004,120]
[404729534,1770497450776,-342.470582,0.0004,120]
[404729535,1770497450785,-151.0,0.0004,120]
[404729536,1770497450794,-151.0,0.0004,120]
[404729537,1770497450803,-151.0,0.0004,120]
[404729538,1770497450812,-151.0,0.0004,120]
[404729539,1770497450821,-151.0,0.0004,120]
[404729540,1770497450830,-400.719351,0.0004,120]
[404729541,1770497450839,-400.719351,0.0004,120]
[404729542,1770497450848,-400.719351,0.0004,120]
[404729543,1770497450857,-400.719351,0.0004,120]
[404729544,1770497450866,-151.0,0.0004,120]
[404729545,1770497450875,-151.0,0.0004,120]
[404729546,1770497450884,-151.0,0.0004,120]
[404729547,1770497450893,-151.0,0.0004,120]
[404729548,1770497450903,-151.0,0.0004,120]
[404729549,1770497450912,-151.0,0.0004,120]
[404729550,1770497450922,-151.0,0.0004,120]
[404729551,1770497450931,-151.0,0.0004,120]
[404729552,1770497450941,-402.246705,0.0004,120]
[404729553,1770497450950,-402.246705,0.0004,120]
[404729554,1770497450959,-155.028268,0.0004,120]
[404729555,1770497450969,-402.246705,0.0004,120]
[404729556,1770497450978,-402.246705,0.0004,120]
[404729557,1770497450987,-151.0,0.0004,28]
[404729558,1770497451000,-151.0,0.0004,28]
[404729559,1770497451015,-151.0,0.0004,120]
[404729560,1770497451026,-227.633648,0.0004,120]
[404729561,1770497451037,-160.016035,0.0004,120]
[404729562,1770497451047,-160.016035,0.0004,120]
[404729563,1770497451057,-157.143638,0.0004,120]
[404729564,1770497451067,-160.016035,0.0004,120]
[404729565,1770497451076,-157.143638,0.0004,120]
[404729566,1770497451085,-151.0,0.0004,120]
[404729567,1770497451095,-160.016035,0.0004,120]
[404729568,1770497451106,-157.143638,0.0004,120]
[404729569,1770497451116,-151.0,0.0004,14]
[404729570,1770497451127,-157.143638,0.0004,120]
[404729571,1770497451136,-157.092362,0.0004,120]
[404729572,1770497451146,-151.0,0.0004,30]
[404729573,1770497451156,-151.0,0.0004,14]
[404729574,1770497451165,-151.0,0.0004,30]
[404729575,1770497451175,-151.0,0.0004,120]
[404729576,1770497451184,-151.0,0.0004,30]
[404729577,1770497451193,-342.781069,0.0004,120]
[404729578,1770497451202,-342.781069,0.0004,120]
[404729579,1770497451211,-342.781069,0.0004,120]
[404729580,1770497451220,-342.781069,0.0004,120]
[404729581,1770497451229,-153.710297,0.0004,7]
[404729582,1770497451238,-151.000021,0.0004,120]
[404729583,1770497451252,-151.0,0.0004,120]
[404729584,1770497451262,-315.218312,0.0004,120]
[404729585,1770497451271,-315.218312,0.0004,120]
[404729586,1770497451280,-590.77,0.0004,120]
[404729587,1770497451290,-1686.12,0.0004,120]
[404729588,1770497451301,-315.218312,0.0004,120]
[404729589,1770497451311,-246.802617,0.0004,120]
[404729590,1770497451321,-571.92,0.0004,120]
[404729591,1770497451331,-315.218312,0.0004,120]
[404729592,1770497451340,-1124.07,0.0004,120]
[404729593,1770497451350,-151.0,0.0004,120]
[404729594,1770497451359,-151.0,0.0004,120]
[404729595,1770497451368,-686.46,0.0004,120]
[404729596,1770497451378,-174.486699,0.0004,120]
[404729597,1770497451387,-151.0,0.0004,120]
[404729598,1770497451399,-493.601132,0.0004,120]
[404729599,1770497451414,-201.064279,0.0004,120]
[404729600,1770497451435,-177.025935,0.0004,120]
[404729601,1770497451453,-151.0,0.0004,120]
[404729602,1770497451464,-493.601132,0.0004,120]
[404729603,1770497451474,-177.025935,0.0004,120]
[404729604,1770497451483,-151.0,0.0004,120]
[404729605,1770497451492,-493.601132,0.0004,120]
[404729606,1770497451501,-177.025935,0.0004,120]
[404729607,1770497451510,-151.0,0.0004,120]
[404729608,1770497451520,-493.601132,0.0004,120]
[404729609,1770497451529,-177.025935,0.0004,120]
[404729610,1770497451538,-214.195702,0.0004,120]
[404729611,1770497451547,-214.195702,0.0004,120]
[404729612,1770497451556,-214.195702,0.0004,120]
[404729613,1770497451565,-214.195702,0.0004,120]
[404729614,1770497451574,-151.0,0.0004,120]
[404729615,1770497451583,-151.0,0.0004,120]
[404729616,1770497451591,-214.195702,0.0004,120]
[404729617,1770497451601,-214.195702,0.0004,120]
[404729618,1770497451610,-151.0,0.0004,120]
[404729619,1770497451619,-157.233562,0.0004,120]
[404729620,1770497451628,-214.195702,0.0004,120]
[404729621,1770497451637,-214.195702,0.0004,120]
[404729622,1770497451651,-237.98717,0.0004,120]
[404729623,1770497451661,-151.0,0.0004,120]
[404729624,1770497451671,-151.0,0.0004,120]
[404729625,1770497451681,-242.366115,0.0004,120]
[404729626,1770497451691,-462.415438,0.0004,120]
[404729627,1770497451708,-164.5752,0.0004,120]
[404729628,1770497451718,-151.0,0.0004,120]
[404729629,1770497451729,-1000.0,0.0004,60]
[404729630,1770497451740,-151.0,0.0004,120]
[404729631,1770497451750,-164.5752,0.0004,120]
[404729632,1770497451761,-217.27634127,0.0004,60]
[404729633,1770497451771,-462.415438,0.0004,120]
[404729634,1770497451782,-151.0,0.0004,120]
[404729635,1770497451793,-151.0,0.0004,120]
[404729636,1770497451804,-462.415438,0.0004,120]
[404729637,1770497451812,-462.415438,0.0004,120]
[404729638,1770497451824,-164.5752,0.0004,120]
[404729639,1770497451835,-164.5752,0.0004,120]
[404729640,1770497451845,-151.0,0.0004,120]
[404729641,1770497451856,-151.0,0.0004,120]
[404729642,1770497451865,-462.415438,0.0004,120]
[404729643,1770497451876,-462.415438,0.0004,120]
[404729644,1770497451886,-164.5752,0.0004,120]
[404729645,1770497451897,-164.5752,0.0004,120]
[404729646,1770497451908,-462.415438,0.0004,120]
[404729647,1770497451919,-164.5752,0.0004,120]
[404729648,1770497451929,-164.5752,0.0004,120]
[404729649,1770497451938,-462.415438,0.0004,120]
[404729650,1770497451949,-478.077226,0.0004,120]
[404729651,1770497451959,-478.077226,0.0004,120]
[404729652,1770497451970,-151.0,0.0004,120]
[404729653,1770497451981,-151.0,0.0004,120]
[404729654,1770497451990,-243.373673,0.0004,120]
[404729655,1770497451999,-478.077226,0.0004,120]
[404729656,1770497452008,-243.373673,0.0004,120]
[404729657,1770497452018,-478.077226,0.0004,120]
[404729658,1770497452032,-212.631482,0.0004,120]
[404729659,1770497452043,-212.631482,0.0004,120]
[404729660,1770497452052,-191.85834,0.0004,120]
[404729661,1770497452062,-191.85834,0.0004,120]
[404729662,1770497452074,-243.373673,0.0004,120]
[404729663,1770497452085,-478.077226,0.0004,120]
[404729664,1770497452095,-151.0,0.0004,120]
[404729665,1770497452105,-243.373673,0.0004,120]
[404729666,1770497452115,-478.077226,0.0004,120]
[404729667,1770497452126,-151.0,0.0004,120]
[404729668,1770497452138,-212.631482,0.0004,120]
[404729669,1770497452148,-212.631482,0.0004,120]
[404729670,1770497452157,-191.85834,0.0004,120]
[404729671,1770497452166,-289.197198,0.0004,31]
[404729672,1770497452176,-191.85834,0.0004,120]
[404729673,1770497452187,-289.197198,0.0004,31]
[404729674,1770497452196,-478.077226,0.0004,120]
[404729675,1770497452208,-243.373673,0.0004,120]
[404729676,1770497452217,-151.0,0.0004,120]
[404729677,1770497452227,-478.077226,0.0004,120]
[404729678,1770497452237,-243.373673,0.0004,120]
[404729679,1770497452252,-212.631482,0.0004,120]
[404729680,1770497452262,-191.85834,0.0004,120]
[404729681,1770497452272,-212.631482,0.0004,120]
[404729682,1770497452283,-191.85834,0.0004,120]